fUSD/lending_fUSD_20260321
["ID","MTS","AMOUNT","RATE_DAILY","PERIOD"]
[408690771,1774125043485,-3818644.56432041,0.00016,2]
[408690772,1774125043501,-767.0,0.00016,2]
[408690773,1774125043513,-3098393.52047424,0.00016,2]
[408690774,1774125043524,-4233.03850729,0.00016,2]
[408690775,1774125043539,-1856.0571989,0.00016,2]
[408690776,1774125043549,-703.0,0.00016,2]
[408690777,1774125043600,-160.0,0.00015407,7]
[408690778,1774125043609,-175.04991627,0.00016,2]
[408690779,1774125043624,-823.3880549,0.00016,2]
[408690780,1774125043635,-6690.40550136,0.00016,2]
[408690781,1774125045826,-2000.0,0.000157,2]
[408690782,1774125045837,-335.0899809,0.000158,2]
[408690783,1774125045848,-1664.9100191,0.000158,2]
[408690784,1774125045858,-488.28998083,0.000159,2]
[408690805,1774125489875,-200.72277979,0.00013863,2]
[408690806,1774125489897,-250.0,0.00013912,2]
[408690807,1774125489919,-1200.0,0.00013962,2]
[408690808,1774125489942,-32726.3386,0.00013963,2]
[408690809,1774125489968,-507.0,0.00014,2]
[408690810,1774125489990,-507.0,0.00014,2]
[408690811,1774125490012,-250.0,0.00014003,2]
[408690812,1774125490033,-6761.4828,0.00014226,2]
[408690813,1774125490055,-6692.45582021,0.00014679,2]
[408690827,1774126017163,-166.66,0.00013892,2]
[408690828,1774126017185,-250.0,0.00013919,2]
[408690829,1774126017206,-13.53116789,0.00013946,2]
[408690830,1774126032078,-181.46883211,0.00013946,2]
[408690831,1774126032100,-507.0,0.00014,2]
[408690832,1774126032122,-166.66,0.00014184,2]
[408690833,1774126032142,-195.0,0.00014226,2]
[408690834,1774126032163,-199.9604653,0.00014226,2]
[408690835,1774126032184,-166.66,0.00014477,2]
[408690836,1774126032204,-234.87,0.00014477,2]
[408690837,1774126032224,-150.0,0.00014491,2]
[408690838,1774126032244,-172.1892,0.00014577,2]
[408690839,1774126032265,-598.01183121,0.00014676,2]
[408690841,1774126076478,400.25,7.311e-05,2]
[408690842,1774126076660,400.25,7.696e-05,2]
[408690843,1774126076851,400.25,8.08e-05,2]
[408690844,1774126077249,400.25,8.465e-05,2]
[408690845,1774126077459,400.25,8.85e-05,2]
[408690846,1774126077654,400.25,9.235e-05,2]
[408690847,1774126077866,400.25,9.619e-05,2]
[408690848,1774126078208,400.25,0.00010004,2]
[408690849,1774126078273,400.25,0.00010389,2]
[408690850,1774126078469,400.25,0.00010774,2]
[408690851,1774126078673,400.25,0.00011158,2]
[408690852,1774126078862,372.79,0.00011543,2]
[408690853,1774126078883,27.46,0.00011543,2]
[408690854,1774126079067,400.25,0.00011928,2]
[408690855,1774126079284,400.25,0.00012313,2]
[408690856,1774126079477,400.25,0.00012697,2]
[408690862,1774126231950,-257.0,0.00013082,2]
[408690863,1774126231961,-244.52740981,0.00013082,2]
[408690864,1774126231976,-155.72259019,0.00013082,2]
[408690865,1774126231987,-304.79089576,0.00013467,2]
[408690866,1774126232001,-95.45910424,0.00013467,2]
[408690867,1774126232011,-400.25,0.00013852,2]
[408690868,1774126232023,-335.94047447,0.00014,2]
[408690869,1774126232037,-171.05952553,0.00014,2]
[408690870,1774126232048,-320.32070464,0.00014237,2]
[408690871,1774126232059,-79.92929536,0.00014237,2]
[408690872,1774126232069,-250.0,0.0001439,2]
[408690873,1774126232079,-302.0,0.0001449,2]
[408690874,1774126232089,-1200.0,0.0001449,2]
[408690875,1774126232099,-168.07070464,0.00014491,2]
[408690876,1774126232110,-577.10754383,0.00014491,2]
[408690877,1774126232126,-2255.84924183,0.00014491,2]
[408690880,1774126232368,-866.46,0.00014491,2]
[408690881,1774126232382,-42861.4725097,0.00014491,2]
[408690882,1774126232392,-9258.65862285,0.00014517,2]
[408690883,1774126232491,-0.32905511,0.00014517,2]
[408690884,1774126232503,-484.55790331,0.00014517,2]
[408690885,1774126232518,-256.45441873,0.00014517,2]
[408690886,1774126232527,-467.29557627,0.00014545,2]
[408690887,1774126238131,-6.70442373,0.00014545,2]
[408690888,1774126238142,-327.8108,0.00014569,2]
[408690889,1774126238152,-623.0,0.0001457,2]
[408690890,1774126238163,-275.36,0.00014593,2]
[408690891,1774126238173,-400.25,0.00014621,2]
[408690892,1774126238183,-200.0,0.00014669,2]
[408690893,1774126238194,-233.0,0.0001467,2]
[408690894,1774126238205,-2000.0,0.00014677,2]
[408690895,1774126238215,-300.0,0.00014677,2]
[408690896,1774126238226,-1120.49614765,0.00014678,2]
[408690897,1774126238242,-1884.44171125,0.00014678,2]
[408690898,1774126238255,-670.48004675,0.00014678,2]
[408691000,1774126240698,-361.22993896,0.00014678,2]
[408691001,1774126240710,-12308.94215539,0.00014678,2]
[408691002,1774126240720,-3167.25417979,0.00014679,2]
[408691003,1774126240730,-8494.37,0.00014688,2]
[408691004,1774126240741,-1001.50433704,0.00014697,2]
[408691005,1774126240751,-1568.0,0.0001472,2]
[408691006,1774126240760,-393.0,0.00014732,2]
[408691007,1774126240771,-166.66,0.00014769,2]
[408691008,1774126240781,-1600.0,0.0001477,2]
[408691009,1774126240792,-3141.38,0.00014791,2]
[408691010,1774126240801,-1886.03,0.00014872,2]
[408691011,1774126240812,-361.88,0.00014947,2]
[408691012,1774126240822,-166.66,0.00015062,2]
[408691013,1774126240832,-979.16666667,0.0001507,2]
[408691014,1774126240842,-160.0,0.0001507,2]
[408691015,1774126240852,-160.0,0.00015088,2]
[408691016,1774126240863,-166.61,0.00015187,2]
[408691017,1774126240873,-300.0,0.00015189,2]
[408691018,1774126240884,-500.0,0.0001519,2]
[408691019,1774126240894,-500.0,0.0001519,2]
[408691020,1774126240904,-500.0,0.0001519,2]
[408691021,1774126240915,-500.0,0.0001519,2]
[408691022,1774126240926,-500.0,0.0001519,2]
[408691023,1774126240936,-500.0,0.0001519,2]
[408691024,1774126240946,-500.0,0.0001519,2]
[408691025,1774126240957,-500.0,0.0001519,2]
[408691026,1774126240968,-500.0,0.0001519,2]
[408691027,1774126240978,-500.0,0.0001519,2]
[408691028,1774126240988,-500.0,0.0001519,2]
[408691029,1774126240998,-500.0,0.0001519,2]
[408691030,1774126241009,-500.0,0.00015233,2]
[408691031,1774126241021,-250.0,0.00015281,2]
[408691032,1774126241031,-166.66,0.00015354,2]
[408691033,1774126241041,-2403.0,0.00015395,2]
[408691034,1774126241051,-500.0,0.00015397,2]
[408691035,1774126241061,-275.36,0.00015404,2]
[408691036,1774126241071,-673.4,0.00015504,2]
[408691037,1774126241082,-572.0,0.00015541,2]
[408691038,1774126241094,-350.0,0.00015543,2]
[408691039,1774126241106,-572.0,0.00015618,2]
[408691040,1774126241117,-350.0,0.00015631,2]
[408691041,1774126241127,-457.685274,0.0001568,7]
[408691042,1774126241137,-160.0,0.0001568,7]
[408691043,1774126241147,-222.289051,0.0001568,7]
[408691044,1774126241158,-160.0,0.0001568,7]
[408691045,1774126241169,-258.573083,0.0001568,7]
[408691046,1774126241180,-243.268982,0.0001568,7]
[408691047,1774126241192,-160.0,0.0001568,7]
[408691048,1774126241202,-443.2,0.00015689,2]
[408691049,1774126241213,-443.2,0.0001569,2]
[408691050,1774126241224,-572.0,0.00015699,2]
[408691051,1774126241235,-2000.0,0.000157,2]
[408691052,1774126241245,-1029.0,0.00015707,2]
[408691053,1774126241256,-293.0641,0.00015775,2]
[408691054,1774126241266,-2500.0,0.00015799,2]
[408691055,1774126241277,-500.0,0.00015799,2]
[408691056,1774126241288,-500.0,0.00015799,2]
[408691057,1774126241299,-500.0,0.00015799,2]
[408691058,1774126241309,-500.0,0.00015799,2]
[408691059,1774126241320,-2654.808,0.00015799,2]
[408691060,1774126241330,-216.609,0.00015799,2]
[408691061,1774126241341,-13360.6648828,0.00015799,2]
[408691062,1774126241352,-723.9066,0.000158,2]
[408691063,1774126241363,-1480.4494,0.000158,2]
[408691064,1774126241373,-13360.66488278,0.0001581,2]
[408691065,1774126241384,-2693.58,0.00015816,2]
[408691066,1774126241393,-13360.66488278,0.00015821,2]
[408691067,1774126241403,-13360.66488278,0.00015833,2]
[408691068,1774126241414,-309.567948,0.00015835,7]
[408691069,1774126241424,-160.0,0.00015835,7]
[408691070,1774126241434,-287.61323555,0.00015838,2]
[408691071,1774126241443,-159.94774,0.0001584,2]
[408691072,1774126241453,-159.94774,0.0001584,2]
[408691073,1774126241463,-159.94773,0.0001584,2]
[408691074,1774126241474,-13360.66488278,0.00015844,2]
[408691075,1774126241484,-500.0,0.00015855,2]
[408691076,1774126241495,-500.0,0.00015855,2]
[408691077,1774126241505,-500.0,0.00015855,2]
[408691078,1774126241517,-500.0,0.00015855,2]
[408691079,1774126241528,-13360.66488278,0.00015855,2]
[408691080,1774126241539,-13360.66488278,0.00015866,2]
[408691081,1774126241553,-500.0,0.00015872,2]
[408691082,1774126241564,-13360.66488278,0.00015878,2]
[408691083,1774126241574,-168.46,0.0001588,3]
[408691084,1774126241585,-505.42,0.00015881,3]
[408691085,1774126241596,-13360.66488278,0.00015889,2]
[408691086,1774126241607,-1029.0,0.00015897,2]
[408691087,1774126241616,-10000.0,0.00015899,2]
[408691089,1774126241627,-338.47316987,0.00015899,2]
[408691090,1774126241637,-500.0,0.00015899,2]
[408691091,1774126241647,-500.0,0.00015899,2]
[408691092,1774126241657,-500.0,0.00015899,2]
[408691093,1774126241667,-524.38086568,0.00015899,2]
[408691094,1774126241678,-1562.47886364,0.000159,2]
[408691096,1774126241689,-2022.0,0.000159,2]
[408691097,1774126241698,-5000.0,0.000159,2]
[408691098,1774126241708,-3772.44523579,0.000159,2]
[408691099,1774126241719,-13360.66488278,0.000159,2]
[408691100,1774126241729,-1976.81087154,0.000159,2]
[408691101,1774126241740,-410.36419237,0.000159,2]
[408691102,1774126241750,-41916.62693448,0.000159,2]
[408691103,1774126241760,-1029.0,0.00015909,2]
[408691104,1774126241772,-1029.0,0.00015918,2]
[408691105,1774126241782,-1680.0,0.00015939,2]
[408691106,1774126241795,-18817.30050953,0.00015951,2]
[408691107,1774126241805,-500.0,0.00015972,2]
[408691108,1774126241817,-500.0,0.00015972,2]
[408691109,1774126241828,-500.0,0.00015972,2]
[408691110,1774126241840,-500.0,0.00015972,2]
[408691111,1774126241850,-500.0,0.00015973,2]
[408691112,1774126241863,-500.0,0.00015973,2]
[408691113,1774126241872,-500.0,0.00015973,2]
[408691114,1774126241884,-40492.5899222,0.00015987,2]
[408691115,1774126241894,-13845.6275418,0.00015987,2]
[408691116,1774126241905,-255.0,0.0001599,2]
[408691117,1774126241916,-3651.7001846,0.0001599,2]
[408691118,1774126241927,-4031.8187193,0.0001599,2]
[408691119,1774126241937,-9414.6114453,0.0001599,2]
[408691120,1774126241947,-151.0,0.00015997,2]
[408691121,1774126241958,-666.0,0.00015999,2]
[408691122,1774126241970,-500.0,0.00015999,2]
[408691123,1774126241980,-500.0,0.00015999,2]
[408691124,1774126241991,-500.0,0.00015999,2]
[408691125,1774126242002,-569.64418973,0.00015999,2]
[408691126,1774126242013,-500.0,0.00015999,2]
[408691127,1774126242024,-500.0,0.00015999,2]
[408691128,1774126242034,-500.0,0.00015999,2]
[408691129,1774126242045,-500.0,0.00015999,2]
[408691130,1774126242056,-441.16865267,0.00015999,2]
[408691131,1774126242067,-500.0,0.00015999,2]
[408691132,1774126242079,-500.0,0.00015999,2]
[408691133,1774126242091,-282.40708321,0.00015999,2]
[408691134,1774126242101,-500.0,0.00015999,2]
[408691135,1774126242112,-308.25256976,0.00015999,2]
[408691136,1774126242122,-500.0,0.00015999,2]
[408691137,1774126242134,-500.0,0.00015999,2]
[408691138,1774126242144,-500.0,0.00015999,2]
[408691139,1774126242155,-218.78885345,0.00015999,2]
[408691140,1774126242166,-500.0,0.00015999,2]
[408691141,1774126242177,-503.36555988,0.00015999,2]
[408691142,1774126242188,-2140.0,0.00016,5]
[408691143,1774126242198,-1713.0,0.00016,5]
[408691144,1774126242210,-1358890.46660689,0.00016,2]
[408691145,1774126242220,-693.06,0.00016,2]
[408691146,1774126242232,-949721.78705459,0.00016,2]
[408691147,1774126242242,-555.02,0.00016,2]
[408691148,1774126242252,-150.0,0.00016,2]
[408691149,1774126242263,-150.0,0.00016,2]
[408691150,1774126242273,-150.0,0.00016,2]
[408691151,1774126242283,-174.58,0.00016,2]
[408691152,1774126242293,-150.0,0.00016,2]
[408691153,1774126242303,-150.0,0.00016,2]
[408691154,1774126242313,-150.0,0.00016,2]
[408691155,1774126242323,-2395.04205664,0.00016,2]
[408691156,1774126242333,-150.0,0.00016,2]
[408691157,1774126242343,-10313.37980377,0.00016,2]
[408691158,1774126242353,-1058.66,0.00016,2]
[408691159,1774126242362,-995.44,0.00016,2]
[408691160,1774126242372,-516.08,0.00016,2]
[408691161,1774126242382,-384874.08553729,0.00016,2]
[408691180,1774126245948,-547.460072,0.000158,2]
[408691187,1774126246228,-379.12940536,0.000158,2]
[408691193,1774126271678,5533.0,0.000123,5]
[408691199,1774126418502,1245.18,0.00012178,2]
[408691226,1774127242135,-233.07459211,0.000143,2]
[408691227,1774127242159,-1852.42,0.00014307,2]
[408691228,1774127242183,-2199.78,0.0001434,2]
[408691229,1774127242204,-3304.22,0.00014395,2]
[408691230,1774127242226,-300.0,0.00014398,2]
[408691231,1774127242249,-1200.0,0.00014399,2]
[408691232,1774127242269,-300.0,0.00014399,2]
[408691233,1774127242289,-2403.0,0.000144,2]
[408691234,1774127242309,-3240.0,0.00014454,2]
[408691235,1774127242329,-233.0745921,0.00014553,2]
[408691236,1774127242348,-5364.46,0.00014595,2]
[408691237,1774127242368,-500.0,0.00014628,2]
[408691238,1774127242388,-200.0,0.00014628,2]
[408691239,1774127242408,-150.0,0.0001467,2]
[408691240,1774127242429,-1194.5,0.00014671,2]
[408691241,1774127242449,-2172.26148439,0.00014671,2]
[408691254,1774127432143,-233.0745921,0.00014571,2]
[408691255,1774127432154,-300.0,0.00014632,2]
[408691256,1774127432164,-418.02536073,0.00014632,2]
[408691257,1774127432176,-675.0,0.00014632,2]
[408691258,1774127432200,-106.97463927,0.00014632,2]
[408691259,1774127432209,-171.55122692,0.00014633,2]
[408691260,1774127432221,-316.11449079,0.00014633,2]
[408691261,1774127432233,-1075.43,0.00014633,2]
[408691262,1774127432245,-1969.9903863,0.00014633,2]
[408691264,1774127438184,-6466.92389599,0.00014633,2]
[408691265,1774127438194,-150.0,0.0001467,2]
[408691266,1774127438204,-1030.62851561,0.00014671,2]
[408691267,1774127438214,-9999.99,0.00014671,2]
[408691269,1774127438223,-9999.99,0.00014671,2]
[408691270,1774127438234,-499.99,0.00014671,2]
[408691271,1774127438243,-150.99,0.00014671,2]
[408691272,1774127438254,-2456.36,0.00014671,2]
[408691273,1774127438264,-293.0641,0.00014725,2]
[408691274,1774127438273,-21644.30250928,0.00014725,2]
[408691275,1774127438285,-17187.03977107,0.00014725,2]
[408691276,1774127438308,-654.6,0.00014725,2]
[408691277,1774127438323,-3569.54609605,0.00014725,2]
[408691289,1774127440376,-275.77490633,0.00014725,2]
[408691290,1774127440431,-534.0,0.00014725,2]
[408691291,1774127440443,-28617.11751727,0.00014725,2]
[408691292,1774127440452,-151.0,0.00014733,2]
[408691293,1774127440462,-200.0,0.00014733,2]
[408691294,1774127440471,-151.0,0.00014733,2]
[408691295,1774127440480,-151.0,0.00014733,2]
[408691296,1774127440490,-151.0,0.00014733,2]
[408691297,1774127440500,-151.0,0.00014733,2]
[408691298,1774127440509,-151.0,0.00014733,2]
[408691299,1774127440518,-151.0,0.00014733,2]
[408691300,1774127440528,-500.0,0.00014733,2]
[408691301,1774127440537,-151.0,0.00014733,2]
[408691302,1774127440547,-151.0,0.00014733,2]
[408691303,1774127440557,-500.0,0.00014733,2]
[408691304,1774127440566,-151.0,0.00014733,2]
[408691305,1774127440576,-151.0,0.00014733,2]
[408691306,1774127440585,-414.35315363,0.00014733,2]
[408691307,1774127440595,-151.0,0.00014733,2]
[408691308,1774127440604,-151.0,0.00014733,2]
[408691309,1774127440613,-151.0,0.00014733,2]
[408691310,1774127440624,-151.0,0.00014733,2]
[408691311,1774127440634,-151.0,0.00014733,2]
[408691312,1774127440652,-151.0,0.00014733,2]
[408691313,1774127440662,-151.0,0.00014733,2]
[408691314,1774127440672,-151.0,0.00014733,2]
[408691315,1774127440894,-151.0,0.00014733,2]
[408691316,1774127440904,-151.0,0.00014733,2]
[408691317,1774127440914,-151.0,0.00014733,2]
[408691318,1774127440924,-151.0,0.00014733,2]
[408691319,1774127440934,-151.0,0.00014733,2]
[408691320,1774127440944,-151.0,0.00014733,2]
[408691321,1774127440954,-151.0,0.00014733,2]
[408691322,1774127440963,-151.0,0.00014733,2]
[408691323,1774127440973,-151.0,0.00014733,2]
[408691324,1774127440982,-151.0,0.00014733,2]
[408691325,1774127440992,-228.67422982,0.00014733,2]
[408691326,1774127441001,-500.0,0.00014733,2]
[408691327,1774127441010,-8494.37,0.00014733,2]
[408691328,1774127441019,-1539.45,0.00014741,2]
[408691329,1774127441029,-24997.51,0.00014741,2]
[408691330,1774127441039,-18827.08694482,0.00014825,2]
[408691331,1774127441048,-1001.50433704,0.00014906,2]
[408691332,1774127441057,-2686.08,0.00014907,2]
[408691333,1774127441066,-1500.0,0.0001492,2]
[408691334,1774127441076,-250.0,0.00015,2]
[408691335,1774127441085,-515.99986652,0.00015,2]
[408691336,1774127441094,-500.0,0.00015,2]
[408691337,1774127441104,-500.0,0.00015,2]
[408691338,1774127441114,-500.0,0.00015,2]
[408691339,1774127441124,-500.0,0.00015,2]
[408691340,1774127441134,-500.0,0.00015,2]
[408691341,1774127441143,-168.268859,0.00015,2]
[408691342,1774127441152,-160.0,0.00015041,2]
[408691343,1774127441161,-979.16666667,0.00015042,2]
[408691344,1774127441170,-443.2,0.00015087,2]
[408691345,1774127441179,-381.44,0.0001509,2]
[408691346,1774127441188,-193.0,0.00015112,2]
[408691347,1774127441198,-200.0,0.00015134,2]
[408691348,1774127441207,-500.0,0.00015199,2]
[408691349,1774127441216,-500.0,0.00015199,2]
[408691350,1774127441225,-500.0,0.00015199,2]
[408691351,1774127441235,-500.0,0.00015199,2]
[408691352,1774127441244,-500.0,0.00015199,2]
[408691353,1774127441253,-500.0,0.00015199,2]
[408691354,1774127441262,-500.0,0.00015199,2]
[408691355,1774127441272,-500.0,0.00015199,2]
[408691356,1774127441281,-500.0,0.00015199,2]
[408691357,1774127441291,-500.0,0.00015199,2]
[408691358,1774127441300,-500.0,0.00015199,2]
[408691359,1774127441310,-500.0,0.00015199,2]
[408691360,1774127441319,-1000.0,0.00015221,2]
[408691361,1774127441328,-215.0,0.00015281,2]
[408691362,1774127441338,-205.97,0.00015282,2]
[408691363,1774127441347,-361.88,0.00015286,2]
[408691364,1774127441356,-790.99488228,0.00015345,2]
[408691365,1774127441366,-1568.0,0.0001536,2]
[408691366,1774127441375,-215.0,0.0001542,2]
[408691367,1774127441384,-8283.99782815,0.00015498,2]
[408691368,1774127441393,-210.72,0.00015501,2]
[408691369,1774127441403,-350.0,0.00015551,2]
[408691370,1774127441412,-2939.38633784,0.00015596,2]
[408691371,1774127441421,-2500.0,0.0001564,2]
[408691372,1774127441431,-2686.08,0.00015652,2]
[408691373,1774127441440,-13536.68320627,0.00015654,2]
[408691374,1774127441450,-357.60595622,0.00015654,2]
[408691375,1774127441459,-1236.87058931,0.00015668,2]
[408691376,1774127441468,-160.0,0.0001568,7]
[408691377,1774127441477,-188.012964,0.0001568,7]
[408691378,1774127441486,-160.0,0.0001568,7]
[408691379,1774127441495,-186.441024,0.0001568,7]
[408691380,1774127441505,-160.0,0.0001568,7]
[408691381,1774127441514,-203.950905,0.0001568,7]
[408691382,1774127441523,-160.0,0.0001568,7]
[408691383,1774127441532,-199.038258,0.0001568,7]
[408691384,1774127441542,-324.684521,0.0001568,7]
[408691385,1774127441552,-13536.68320626,0.00015681,2]
[408691386,1774127441562,-357.60595619,0.00015689,2]
[408691387,1774127441571,-442.0533437,0.00015697,2]
[408691388,1774127441580,-442.03,0.00015698,2]
[408691389,1774127441589,-442.03,0.00015698,2]
[408691390,1774127441599,-215.0,0.00015705,2]
[408691391,1774127441608,-13536.68320626,0.00015709,2]
[408691392,1774127441617,-357.60595619,0.00015724,2]
[408691393,1774127441627,-168.46,0.0001573,3]
[408691394,1774127441638,-505.42,0.0001573,3]
[408691395,1774127441648,-13536.68320626,0.00015736,2]
[408691396,1774127441658,-500.0,0.00015739,2]
[408691397,1774127441668,-500.0,0.00015739,2]
[408691398,1774127441677,-500.0,0.00015739,2]
[408691399,1774127441686,-524.38086568,0.00015739,2]
[408691400,1774127441696,-43583.6856,0.0001574,2]
[408691401,1774127441707,-215.0,0.00015754,2]
[408691402,1774127441717,-357.60595619,0.00015759,2]
[408691403,1774127441727,-13536.68320626,0.00015763,2]
[408691404,1774127441737,-215.0,0.00015783,2]
[408691405,1774127441747,-215.0,0.00015786,2]
[408691406,1774127441756,-13536.68320626,0.00015791,2]
[408691407,1774127441766,-357.60595619,0.00015795,2]
[408691408,1774127441776,-255.0,0.000158,2]
[408691409,1774127441786,-3485.566,0.00015804,2]
[408691410,1774127441796,-153.336,0.00015804,2]
[408691411,1774127441805,-13536.68320626,0.00015818,2]
[408691412,1774127441814,-357.60595619,0.0001583,2]
[408691413,1774127441823,-25547.70144303,0.0001584,2]
[408691414,1774127441832,-13536.68320626,0.00015845,2]
[408691415,1774127441843,-350.0,0.00015857,2]
[408691416,1774127441853,-357.60595619,0.00015865,2]
[408691417,1774127441863,-415.0,0.00015867,2]
[408691418,1774127441876,-6007.0,0.00015867,2]
[408691419,1774127441886,-2466.0,0.00015867,2]
[408691420,1774127441896,-215.0,0.00015867,2]
[408691421,1774127441905,-500.0,0.00015872,2]
[408691422,1774127441915,-13536.68320626,0.00015873,2]
[408691423,1774127441926,-2000.0,0.0001589,2]
[408691424,1774127441936,-500.0,0.00015899,2]
[408691425,1774127441948,-500.0,0.00015899,2]
[408691426,1774127441957,-500.0,0.00015899,2]
[408691427,1774127441967,-500.0,0.00015899,2]
[408691428,1774127441976,-223.21126626,0.000159,2]
[408691429,1774127441986,-10000.0,0.000159,2]
[408691430,1774127441996,-5000.0,0.000159,2]
[408691431,1774127442005,-13536.68320626,0.000159,2]
[408691432,1774127442015,-185.67890709,0.000159,2]
[408691433,1774127442025,-32061.70821267,0.000159,2]
[408691434,1774127442034,-13972.20897816,0.000159,2]
[408691435,1774127442043,-658.93695718,0.000159,2]
[408691436,1774127442053,-205.18209619,0.000159,2]
[408691437,1774127442062,-357.60595619,0.000159,2]
[408691438,1774127442071,-6665.30790525,0.000159,2]
[408691439,1774127442080,-215.0,0.00015907,2]
[408691440,1774127442090,-255.0,0.0001593,2]
[408691441,1774127442100,-256.0,0.0001593,2]
[408691442,1774127442109,-500.0,0.00015973,2]
[408691443,1774127442119,-500.0,0.00015973,2]
[408691444,1774127442128,-500.0,0.00015973,2]
[408691445,1774127442138,-500.0,0.00015973,2]
[408691446,1774127442148,-312.55550494,0.00015985,2]
[408691447,1774127442158,-500.0,0.00015985,2]
[408691448,1774127442167,-176.25227146,0.00015985,2]
[408691449,1774127442177,-153.36555988,0.00015985,2]
[408691450,1774127442187,-500.0,0.00015985,2]
[408691451,1774127442196,-500.0,0.00015985,2]
[408691452,1774127442205,-500.0,0.00015985,2]
[408691453,1774127442215,-500.0,0.00015985,2]
[408691454,1774127442224,-500.0,0.00015985,2]
[408691455,1774127442233,-621.89583768,0.00015985,2]
[408691456,1774127442244,-16913.233605,0.00015986,2]
[408691457,1774127442253,-372145.5257897,0.00015986,2]
[408691458,1774127442262,-37535.9998094,0.00015986,2]
[408691459,1774127442272,-151.0,0.00015997,2]
[408691460,1774127442281,-151.0,0.00015997,2]
[408691461,1774127442291,-666.0,0.00015999,2]
[408691462,1774127442300,-500.0,0.00015999,2]
[408691463,1774127442310,-500.0,0.00015999,2]
[408691464,1774127442320,-500.0,0.00015999,2]
[408691465,1774127442329,-500.0,0.00015999,2]
[408691466,1774127442339,-500.0,0.00015999,2]
[408691467,1774127442348,-569.64418973,0.00015999,2]
[408691468,1774127442358,-500.0,0.00015999,2]
[408691469,1774127442368,-500.0,0.00015999,2]
[408691470,1774127442378,-500.0,0.00015999,2]
[408691471,1774127442387,-500.0,0.00015999,2]
[408691472,1774127442396,-500.0,0.00015999,2]
[408691473,1774127442406,-500.0,0.00015999,2]
[408691474,1774127442416,-338.47316987,0.00015999,2]
[408691475,1774127442426,-500.0,0.00015999,2]
[408691476,1774127442435,-500.0,0.00015999,2]
[408691477,1774127442445,-441.16865267,0.00015999,2]
[408691478,1774127442455,-155.0,0.00015999,2]
[408691479,1774127442465,-500.0,0.00015999,2]
[408691480,1774127442474,-500.0,0.00015999,2]
[408691481,1774127442483,-500.0,0.00015999,2]
[408691482,1774127442493,-500.0,0.00015999,2]
[408691483,1774127442502,-282.40708321,0.00015999,2]
[408691484,1774127442512,-2143.0,0.00016,5]
[408691485,1774127442521,-1708.0,0.00016,5]
[408691486,1774127442530,-2220158.17282898,0.00016,2]
[408691487,1774127442557,-378.66,0.00016,2]
[408691488,1774127442585,-1486.42542565,0.00016,2]
[408691489,1774127442596,-1810.00289802,0.00016,2]
[408691494,1774127443262,-422.39513532,0.00016,2]
[408691495,1774127443317,-12384.17355889,0.00016,2]
[408691496,1774127443533,-1261.67287079,0.00016,2]
[408691497,1774127443545,-674718.39229131,0.00016,2]
[408691498,1774127443556,-187623.63312899,0.00016,2]
[408691521,1774127446103,-104327.26251832,0.00016,2]
[408691522,1774127446164,-459.58986104,0.00016,2]
[408691523,1774127446216,-1705.43207844,0.00016,2]
[408691524,1774127446227,-800.6768,0.00016,2]
[408691526,1774127446488,-955.11354241,0.00016,2]